bitfinex-derivatives/quotes_BTCF0:USTF0_20250719
["timestamp","ask_amount","ask_price","bid_price","bid_amount"]
[1752950147997,0.46158685,118090.0,118080.0,0.56450074]
[1752950148493,0.46158685,118090.0,118080.0,0.5459897]
[1752950148791,0.46158685,118090.0,118080.0,0.20396541]
[1752950150302,0.46158685,118090.0,118080.0,0.1851897]
[1752950150702,0.46158685,118090.0,118080.0,0.21896149]
[1752950151705,0.46158685,118090.0,118080.0,0.21925397]
[1752950152802,0.45290362,118090.0,118080.0,0.2003497]
[1752950153704,0.29008052,118090.0,118080.0,0.2003497]
[1752950153905,0.45290362,118090.0,118080.0,0.21902713]
[1752950154102,0.46142828,118090.0,118080.0,0.21902713]
[1752950154805,0.46142828,118090.0,118080.0,0.21924054]
[1752950155406,0.46142828,118090.0,118080.0,0.2003497]
[1752950155608,0.46142828,118090.0,118080.0,0.21941002]
[1752950155903,0.46142828,118090.0,118080.0,0.05012032]
[1752950156306,0.46142828,118090.0,118080.0,0.01906032]
[1752950156600,0.2544197,118080.0,118070.0,0.64960849]
[1752950156800,1.17906789,118080.0,118070.0,0.41468219]
[1752950157102,0.2544341,118070.0,118060.0,0.8369214]
[1752950157307,0.45139901,118070.0,118060.0,0.8369214]
[1752950157506,0.45139901,118070.0,118060.0,0.8605714]
[1752950159008,0.45139901,118070.0,118060.0,0.8625714]
[1752950159204,0.28857591,118070.0,118060.0,0.8625714]
[1752950159412,0.28857591,118070.0,118060.0,0.8669414]
[1752950159612,0.28957591,118070.0,118060.0,1.0277645]
[1752950159806,0.28957591,118070.0,118060.0,1.3885645]
[1752950160107,0.45239901,118070.0,118060.0,1.3885645]
[1752950160508,0.28957591,118070.0,118060.0,1.3885645]
[1752950162109,0.28957591,118070.0,118060.0,1.2257414]
[1752950162414,0.45239901,118070.0,118060.0,1.3885645]
[1752950162607,0.28957591,118070.0,118060.0,1.3885645]
[1752950162909,0.45239901,118070.0,118060.0,1.3885645]
[1752950163512,0.28957591,118070.0,118060.0,1.3885645]
[1752950166109,0.61710181,118070.0,118060.0,1.3885645]
[1752950168315,0.61610181,118070.0,118060.0,1.3885645]
[1752950168613,0.03414181,118070.0,118060.0,2.1343476]
[1752950168914,0.03414181,118070.0,118060.0,1.9715245]
[1752950169115,0.03414181,118070.0,118060.0,1.9725245]
[1752950173912,0.03414181,118070.0,118060.0,2.1353476]
[1752950174216,0.81851727,118090.0,118080.0,0.2566397]
[1752950174417,0.79534727,118090.0,118080.0,1.322578]
[1752950174813,0.23655727,118090.0,118080.0,1.322578]
[1752950175519,0.23655727,118090.0,118080.0,1.3038859]
[1752950175719,0.24108727,118090.0,118080.0,1.3038859]
[1752950176016,0.24308727,118090.0,118080.0,1.32311567]
[1752950176413,0.24408727,118090.0,118080.0,1.32311567]
[1752950176917,0.24408727,118090.0,118080.0,1.3038859]
[1752950177217,0.24308727,118090.0,118080.0,1.3038859]
[1752950177621,0.24208727,118090.0,118080.0,1.3038859]
[1752950177814,0.24208727,118090.0,118080.0,1.32288962]
[1752950178014,0.24208727,118090.0,118080.0,1.3038859]
[1752950178915,0.24208727,118090.0,118080.0,1.32238645]
[1752950180521,0.24208727,118090.0,118080.0,1.3038859]
[1752950181422,0.24208727,118090.0,118080.0,0.9782397]
[1752950181622,0.24208727,118090.0,118080.0,1.32247682]
[1752950181821,0.24208727,118090.0,118080.0,1.3038859]
[1752950182022,0.24208727,118090.0,118080.0,1.32268304]
[1752950182221,0.24208727,118090.0,118080.0,1.3038859]
[1752950182421,0.24208727,118090.0,118080.0,1.32268304]
[1752950184024,0.24208727,118090.0,118080.0,1.3038859]
[1752950184327,0.24208727,118090.0,118080.0,1.32308602]
[1752950185423,0.24208727,118090.0,118080.0,1.3038859]
[1752950185624,0.24208727,118090.0,118080.0,1.32303157]
[1752950186324,0.25886267,118090.0,118080.0,1.32303157]
[1752950186825,0.25886267,118090.0,118080.0,1.3038859]
[1752950187717,0.25886267,118090.0,118080.0,1.32309382]
[1752950187921,0.25886267,118090.0,118080.0,1.3038859]
[1752950188827,0.25886267,118090.0,118080.0,1.32282398]
[1752950190132,0.25886267,118090.0,118080.0,1.3038859]
[1752950190833,0.25886267,118090.0,118080.0,1.32239685]
[1752950191535,0.25886267,118090.0,118080.0,1.32289232]
[1752950191734,0.20728267,118090.0,118080.0,1.90473232]
[1752950199646,0.03479853,118090.0,118080.0,1.90473232]
[1752950200339,0.03479853,118090.0,118080.0,2.06755542]
[1752950200936,0.03479853,118090.0,118080.0,1.90473232]
[1752950201746,0.03479853,118090.0,118080.0,2.19643232]
[1752950201947,0.03379853,118090.0,118080.0,2.20043232]
[1752950203354,0.03402272,118090.0,118080.0,2.20043232]
[1752950204549,0.03402272,118090.0,118080.0,2.20045884]
[1752950204749,0.03402272,118090.0,118080.0,2.1814259]
[1752950205551,0.03402272,118090.0,118080.0,2.20045111]
[1752950207247,0.03402272,118090.0,118080.0,2.03762801]
[1752950207551,0.03402272,118090.0,118080.0,2.20045111]
[1752950208353,0.08281272,118090.0,118080.0,2.20045111]
[1752950209053,0.08775272,118090.0,118080.0,2.20045111]
[1752950210053,0.08775272,118090.0,118080.0,2.19845111]
[1752950210256,0.08775272,118090.0,118080.0,2.19945111]
[1752950211757,0.08775272,118090.0,118080.0,2.19845111]
[1752950216162,0.08281272,118090.0,118080.0,2.19845111]
[1752950216462,0.05855272,118090.0,118080.0,2.19845111]
[1752950217258,0.03402272,118090.0,118080.0,2.19845111]
[1752950218558,0.03402272,118090.0,118080.0,1.87280491]
[1752950218861,0.03402272,118090.0,118080.0,2.19845111]
[1752950226468,0.03402272,118090.0,118080.0,2.24401673]
[1752950226963,0.01724732,118090.0,118080.0,2.24401673]
[1752950227163,0.03409775,118090.0,118080.0,2.24401673]
[1752950232567,0.11935341,118100.0,118090.0,0.2556554]
[1752950232767,0.13628444,118100.0,118090.0,0.9421016]
[1752950233168,0.13628444,118100.0,118090.0,0.7792785]
[1752950233369,0.15226444,118100.0,118090.0,0.7792785]
[1752950233669,0.16840444,118100.0,118090.0,0.7792785]
[1752950233871,0.17190444,118100.0,118090.0,0.7792785]
[1752950234770,0.17090444,118100.0,118090.0,0.7792785]
[1752950236273,0.17190444,118100.0,118090.0,0.7792785]
[1752950236771,0.17090444,118100.0,118090.0,0.7792785]
[1752950241578,0.13628444,118100.0,118090.0,0.7792785]
[1752950242479,0.15238444,118100.0,118090.0,0.7792785]
[1752950242779,0.16897444,118100.0,118090.0,0.7792785]
[1752950244179,0.16897444,118100.0,118090.0,1.1400785]
[1752950244479,0.18575462,118100.0,118090.0,1.1400785]
[1752950248381,0.18801462,118100.0,118090.0,1.1400785]
[1752950249183,0.15306462,118100.0,118090.0,1.1400785]
[1752950251484,0.16916462,118100.0,118090.0,1.1400785]
[1752950251784,0.18575462,118100.0,118090.0,1.1400785]
[1752950252082,0.18801462,118100.0,118090.0,1.1400785]
[1752950252283,0.18801462,118100.0,118090.0,0.9772554]
[1752950252583,0.18801462,118100.0,118090.0,1.1400785]
[1752950252784,0.35083772,118100.0,118090.0,1.1400785]
[1752950253083,0.18801462,118100.0,118090.0,1.1400785]
[1752950254783,0.18801462,118100.0,118090.0,0.9772554]
[1752950255082,0.18801462,118100.0,118090.0,1.1400785]
[1752950256286,0.35727572,118100.0,118090.0,1.1400785]
[1752950256989,0.52009882,118100.0,118090.0,1.1400785]
[1752950257387,0.52109882,118100.0,118090.0,1.1400785]
[1752950257687,0.52209882,118100.0,118090.0,1.1400785]
[1752950257885,0.52109882,118100.0,118090.0,1.1400785]
[1752950258086,0.52209882,118100.0,118090.0,1.1400785]
[1752950259591,0.52109882,118100.0,118090.0,1.1400785]
[1752950259890,0.52209882,118100.0,118090.0,1.1400785]
[1752950260491,0.52209882,118100.0,118090.0,0.9772554]
[1752950260789,0.52209882,118100.0,118090.0,1.1400785]
[1752950262092,0.35927572,118100.0,118090.0,1.1400785]
[1752950266299,0.52209882,118100.0,118090.0,1.1400785]
[1752950267196,0.52209882,118100.0,118090.0,0.9772554]
[1752950267492,0.52209882,118100.0,118090.0,1.1400785]
[1752950268791,0.35283772,118100.0,118090.0,1.1400785]
[1752950269092,0.35283772,118100.0,118090.0,0.9772554]
[1752950269394,0.34249544,118100.0,118090.0,1.1400785]
[1752950269591,0.35928667,118100.0,118090.0,1.1400785]
[1752950271398,0.35928667,118100.0,118090.0,0.9772554]
[1752950271599,0.35928667,118100.0,118090.0,1.1400785]
[1752950275307,0.35928667,118100.0,118090.0,0.9772554]
[1752950275506,0.35928667,118100.0,118090.0,1.1400785]
[1752950277706,0.35928667,118100.0,118090.0,0.4184785]
[1752950277908,0.35928667,118100.0,118090.0,1.1400785]
[1752950284819,0.35928667,118100.0,118090.0,0.9772554]
[1752950285117,0.35928667,118100.0,118090.0,1.1400785]
[1752950286317,0.52210977,118100.0,118090.0,0.9772554]
[1752950286620,0.52210977,118100.0,118090.0,1.1400785]
[1752950287213,0.35928667,118100.0,118090.0,1.1400785]
[1752950287418,0.52210977,118100.0,118090.0,1.1400785]
[1752950290322,0.52210987,118100.0,118090.0,1.1400785]
[1752950290525,0.19002567,118100.0,118090.0,1.1400785]
[1752950291024,0.35928667,118100.0,118090.0,1.1400785]
[1752950294124,0.19002567,118100.0,118090.0,1.1400785]
[1752950296621,0.15507567,118100.0,118090.0,1.1400785]
[1752950297533,0.15407567,118100.0,118090.0,1.1400785]
[1752950298634,0.15307567,118100.0,118090.0,1.1400785]
[1752950299135,0.32233677,118100.0,118090.0,1.1400785]
[1752950299632,0.33803677,118100.0,118090.0,1.1400785]
[1752950301331,0.16877567,118100.0,118090.0,1.1400785]
[1752950302635,0.33803677,118100.0,118090.0,1.1400785]
[1752950302834,0.35380677,118100.0,118090.0,1.1400785]
[1752950303528,0.18454567,118100.0,118090.0,1.1400785]
[1752950303734,0.76626567,118100.0,118090.0,1.1400785]
[1752950304131,0.76626567,118100.0,118090.0,0.4184785]
[1752950304436,0.76626567,118100.0,118090.0,1.1400785]
[1752950304737,0.76874567,118100.0,118090.0,1.1400785]
[1752950313042,0.76866567,118100.0,118090.0,1.1400785]
[1752950340974,0.93792667,118100.0,118090.0,0.9772554]
[1752950341272,0.76866567,118100.0,118090.0,1.1400785]
[1752950342577,0.76866567,118100.0,118090.0,0.9772554]
[1752950342776,1.10074977,118100.0,118090.0,1.1400785]
[1752950343272,1.10074977,118100.0,118090.0,1.1357085]
[1752950344378,1.10174977,118100.0,118090.0,1.1357085]
[1752950344579,1.10274977,118100.0,118090.0,1.1357085]
[1752950345478,0.93992667,118100.0,118090.0,1.1357085]
[1752950345777,1.10274977,118100.0,118090.0,1.1357085]
[1752950346277,0.93992667,118100.0,118090.0,1.1357085]
[1752950347080,0.92313544,118100.0,118090.0,1.1357085]
[1752950347277,0.93975366,118100.0,118090.0,1.1357085]
[1752950347478,1.10257676,118100.0,118090.0,1.1357085]
[1752950350281,0.93975366,118100.0,118090.0,1.1357085]
[1752950350482,0.93975366,118100.0,118090.0,1.1400785]
[1752950352980,0.93975366,118100.0,118090.0,0.4184785]
[1752950353282,0.94000957,118100.0,118090.0,1.1400785]
[1752950357085,1.10283267,118100.0,118090.0,1.1400785]
[1752950361590,0.94000957,118100.0,118090.0,1.1400785]
[1752950363392,0.12693857,118100.0,118090.0,1.3029016]
[1752950363592,0.10288857,118100.0,118090.0,1.3029016]
[1752950363992,0.03580516,118100.0,118090.0,1.4657247]
[1752950364187,0.07074,118120.0,118110.0,0.2565966]
[1752950364388,0.01699258,118120.0,118110.0,1.3038428]
[1752950365394,0.01699258,118120.0,118110.0,1.31229064]
[1752950365691,0.01799258,118120.0,118110.0,1.31229064]
[1752950367797,0.01899258,118120.0,118110.0,1.31229064]
[1752950370298,0.01899258,118120.0,118110.0,0.98664444]
[1752950370499,0.01899258,118120.0,118110.0,1.31229064]
[1752950370799,0.002,118120.0,118110.0,1.31229064]
[1752950373500,0.002,118120.0,118110.0,1.60399064]
[1752950387022,0.01853919,118120.0,118110.0,1.60399064]
[1752950388923,0.01853919,118120.0,118110.0,0.88239064]
[1752950389123,0.01853919,118120.0,118110.0,1.60399064]
[1752950390925,0.01919028,118130.0,118120.0,0.1882124]
[1752950391129,0.03574283,118130.0,118120.0,1.9789517]
[1752950391525,0.03574283,118130.0,118120.0,1.4904824]
[1752950391726,0.03574283,118130.0,118120.0,1.9789517]
[1752950392029,0.01919028,118130.0,118120.0,1.8161286]
[1752950392229,0.02019028,118130.0,118120.0,1.8161286]
[1752950392622,0.02019028,118130.0,118120.0,1.4904824]
[1752950392821,0.04380028,118130.0,118120.0,1.8161286]
[1752950393029,0.06788028,118130.0,118120.0,1.8161286]
[1752950393329,0.06888028,118130.0,118120.0,1.8161286]
[1752950393530,0.06888028,118130.0,118120.0,1.4904824]
[1752950393731,0.06888028,118130.0,118120.0,1.8161286]
[1752950396826,0.10730028,118130.0,118120.0,1.2352486]
[1752950397032,0.10730028,118130.0,118120.0,1.8160886]
[1752950398125,0.10730028,118130.0,118120.0,1.2352486]
[1752950398332,0.27651838,118130.0,118120.0,1.8160886]
[1752950398731,0.27651838,118130.0,118120.0,1.2352486]
[1752950398931,0.27651838,118130.0,118120.0,1.8160486]
[1752950401933,0.27651838,118130.0,118120.0,1.4379724]
[1752950402234,0.27651838,118130.0,118120.0,1.6007955]
[1752950402933,0.29299958,118130.0,118120.0,1.3090955]
[1752950403335,0.29299958,118130.0,118120.0,1.4968486]
[1752950403636,0.29299958,118130.0,118120.0,1.5199786]
[1752950404034,0.29299958,118130.0,118120.0,0.9391786]
[1752950406938,0.29299958,118130.0,118120.0,0.7763555]
[1752950407339,0.29299958,118130.0,118120.0,0.9391786]
[1752950408040,0.29299958,118130.0,118120.0,0.7763555]
[1752950408239,0.29299667,118130.0,118120.0,0.7763555]
[1752950408538,0.29299667,118130.0,118120.0,0.9391786]
[1752950409940,0.29299667,118130.0,118120.0,0.6135324]
[1752950410239,0.29299667,118130.0,118120.0,0.9391786]
[1752950410439,0.29299667,118130.0,118120.0,0.6135324]
[1752950410639,0.29299667,118130.0,118120.0,0.7763555]
[1752950410835,0.29299667,118130.0,118120.0,0.7933353]
[1752950411240,0.45581977,118130.0,118120.0,0.7933353]
[1752950411441,0.45581977,118130.0,118120.0,0.7702053]
[1752950411637,0.29299667,118130.0,118120.0,0.7702053]
[1752950412043,0.29299667,118130.0,118120.0,0.7933353]
[1752950412941,0.29299667,118130.0,118120.0,0.7977053]
[1752950417146,0.29299667,118130.0,118120.0,0.9605284]
[1752950421252,0.29299667,118130.0,118120.0,0.6348822]
[1752950421450,0.29299667,118130.0,118120.0,0.7977053]
[1752950422756,0.29299667,118130.0,118120.0,0.6348822]
[1752950423052,0.29299667,118130.0,118120.0,0.7977053]
[1752950423756,0.45581977,118130.0,118120.0,0.9605284]
[1752950424456,0.29299667,118130.0,118120.0,0.9605284]
[1752950425656,0.29299957,118130.0,118120.0,0.9605284]
[1752950433356,0.03766857,118130.0,118120.0,1.1233515]
[1752950434061,0.03766857,118130.0,118120.0,1.16891712]
[1752950436674,0.03766857,118130.0,118120.0,1.1233515]
[1752950438471,0.03766857,118130.0,118120.0,1.4150515]
[1752950440565,0.00829857,118130.0,118120.0,1.4150515]
[1752950440771,0.66609,118150.0,118140.0,0.2185467]
[1752950440967,0.66609,118150.0,118140.0,1.2657929]
[1752950442772,0.08549,118150.0,118140.0,1.2657929]
[1752950442971,0.09249,118150.0,118140.0,1.2657929]
[1752950443776,0.09249,118150.0,118140.0,0.9401467]
[1752950443977,0.09249,118150.0,118140.0,0.9363367]
[1752950444277,0.09249,118150.0,118140.0,1.2619829]
[1752950444577,0.16030371,118150.0,118140.0,1.2619829]
[1752950445580,0.32949601,118150.0,118140.0,1.2619829]
[1752950445773,0.32949601,118150.0,118140.0,0.9363367]
[1752950446077,0.49231911,118150.0,118140.0,1.0991598]
[1752950446973,0.32949601,118150.0,118140.0,1.0991598]
[1752950447277,0.91005601,118150.0,118140.0,1.0991598]
[1752950447875,0.32949601,118150.0,118140.0,1.0991598]
[1752950448075,0.91005601,118150.0,118140.0,1.0991598]
[1752950448977,1.07287911,118150.0,118140.0,1.0991598]
[1752950449677,1.07287911,118150.0,118140.0,1.2619829]
[1752950449978,1.07287911,118150.0,118140.0,0.5755367]
[1752950450174,0.91005601,118150.0,118140.0,0.7140898]
[1752950450376,1.07287911,118150.0,118140.0,0.7140898]
[1752950451077,1.07287911,118150.0,118140.0,0.5512667]
[1752950451277,1.07287911,118150.0,118140.0,0.5451667]
[1752950451776,1.07287911,118150.0,118140.0,0.7079898]
[1752950452680,1.08927121,118150.0,118140.0,0.7079898]
[1752950454380,1.08927121,118150.0,118140.0,0.5451667]
[1752950454579,1.08927121,118150.0,118140.0,0.70789211]
[1752950456580,1.08927121,118150.0,118140.0,0.54506901]
[1752950456781,1.08927121,118150.0,118140.0,0.70789211]
[1752950457780,0.92644811,118150.0,118140.0,0.70789211]
[1752950457981,1.08927121,118150.0,118140.0,0.71399211]
[1752950459782,1.08927121,118150.0,118140.0,0.55116901]
[1752950459984,1.08927121,118150.0,118140.0,0.71399211]
[1752950460987,1.08927121,118150.0,118140.0,0.3608]
[1752950461187,1.08927121,118150.0,118140.0,0.5236231]
[1752950461787,0.92644811,118150.0,118140.0,0.6928298]
[1752950461982,1.08927121,118150.0,118140.0,0.6928298]
[1752950462889,1.08927121,118150.0,118140.0,0.5236231]
[1752950463093,1.08930141,118150.0,118140.0,0.6928297]
[1752950464693,1.08930141,118150.0,118140.0,0.5300066]
[1752950464891,1.08930449,118150.0,118140.0,0.6928297]
[1752950467490,1.08930449,118150.0,118140.0,0.5464966]
[1752950467789,1.08930449,118150.0,118140.0,0.7093197]
[1752950469600,0.92648139,118150.0,118140.0,0.7093197]
[1752950469896,1.08930449,118150.0,118140.0,0.7093197]
[1752950471801,1.08930449,118150.0,118140.0,0.7154197]
[1752950473905,1.08930449,118150.0,118140.0,0.5525966]
[1752950474201,1.08930449,118150.0,118140.0,0.7154197]
[1752950475306,1.08930449,118150.0,118140.0,0.5525966]
[1752950475799,1.08930449,118150.0,118140.0,0.7093197]
[1752950476502,1.1502257,118150.0,118140.0,0.7093197]
[1752950478005,0.9874026,118150.0,118140.0,0.7093197]
[1752950478208,1.1502257,118150.0,118140.0,0.7093197]
[1752950479004,1.1502257,118150.0,118140.0,0.3485197]
[1752950479206,1.1502257,118150.0,118140.0,0.7093197]
[1752950479401,0.9874026,118150.0,118140.0,0.7093197]
[1752950479599,1.1502257,118150.0,118140.0,0.7154197]
[1752950483107,0.9874026,118150.0,118140.0,0.7154197]
[1752950483409,1.1502257,118150.0,118140.0,0.7154197]
[1752950485807,1.1502257,118150.0,118140.0,0.5525966]
[1752950486011,1.1502257,118150.0,118140.0,0.7154197]
[1752950486511,1.08930449,118150.0,118140.0,0.7154197]
[1752950488907,1.08930449,118150.0,118140.0,0.5525966]
[1752950489102,1.08930449,118150.0,118140.0,0.7154197]
[1752950490006,1.08930449,118150.0,118140.0,0.5300066]
[1752950491814,1.08930449,118150.0,118140.0,0.6928297]
[1752950492410,1.08930449,118150.0,118140.0,0.3320297]
[1752950492615,1.08930449,118150.0,118140.0,0.6928297]
[1752950493016,1.08930449,118150.0,118140.0,0.5300066]
[1752950493417,1.08930449,118150.0,118140.0,0.6928297]
[1752950493613,1.08930449,118150.0,118140.0,0.5300066]
[1752950493916,1.08930449,118150.0,118140.0,0.6928297]
[1752950494415,1.08930449,118150.0,118140.0,0.5300066]
[1752950494617,1.08930449,118150.0,118140.0,0.6928297]
[1752950494916,1.08930449,118150.0,118140.0,0.3320297]
[1752950495520,1.08930449,118150.0,118140.0,0.1692066]
[1752950495709,0.1942253,118120.0,118110.0,0.68966252]
[1752950495911,0.1942253,118120.0,118110.0,0.6593569]
[1752950495912,1.01631378,118120.0,118110.0,0.6593569]
[1752950496111,1.17913688,118120.0,118110.0,0.5937059]
[1752950496318,1.01631378,118120.0,118110.0,0.756529]
[1752950496520,1.01631378,118120.0,118110.0,0.5937059]
[1752950497017,1.01631378,118120.0,118110.0,0.756529]
[1752950497813,1.01631378,118120.0,118110.0,0.5937059]
[1752950498014,1.01631378,118120.0,118110.0,0.756529]
[1752950498319,1.01731378,118120.0,118110.0,0.5937059]
[1752950498721,1.01731378,118120.0,118110.0,0.756529]
[1752950498928,1.01831378,118120.0,118110.0,0.756529]
[1752950499429,1.01831378,118120.0,118110.0,0.5937059]
[1752950499625,1.01831378,118120.0,118110.0,0.756529]
[1752950500025,0.85549068,118120.0,118110.0,0.5937059]
[1752950500232,1.01831378,118120.0,118110.0,0.5937059]
[1752950503926,1.01831378,118120.0,118110.0,0.756529]
[1752950504825,1.01831378,118120.0,118110.0,0.5937059]
[1752950505020,1.01831378,118120.0,118110.0,0.756529]
[1752950505619,1.18113688,118120.0,118110.0,0.5300353]
[1752950506419,1.01831378,118120.0,118110.0,0.5300353]
[1752950506822,1.18113688,118120.0,118110.0,0.1692353]
[1752950507431,0.85549068,118120.0,118110.0,0.1692353]
[1752950507631,1.01831378,118120.0,118110.0,0.5300353]
[1752950507833,1.01831378,118120.0,118110.0,0.5452953]
[1752950508025,1.01831378,118120.0,118110.0,0.5513953]
[1752950508432,1.01831378,118120.0,118110.0,0.7142184]
[1752950509832,0.2029196,118110.0,118100.0,0.6529545]
[1752950510132,0.43382808,118110.0,118100.0,0.822207]
[1752950513034,0.43382808,118110.0,118100.0,0.798867]
[1752950514035,0.43382808,118110.0,118100.0,0.823357]
[1752950515037,0.27100498,118110.0,118100.0,0.823357]
[1752950515335,0.43382808,118110.0,118100.0,0.823357]
[1752950516839,0.27100498,118110.0,118100.0,0.823357]
[1752950518840,0.43382808,118110.0,118100.0,0.823357]
[1752950520541,0.43382808,118110.0,118100.0,0.462557]
[1752950520741,0.27100498,118110.0,118100.0,0.823357]
[1752950521545,0.27100498,118110.0,118100.0,0.7142471]
[1752950522043,0.27100498,118110.0,118100.0,0.7387371]
[1752950523544,0.2545796,118110.0,118100.0,0.7387371]
[1752950524241,0.27108847,118110.0,118100.0,0.7387371]
[1752950524843,0.2545796,118110.0,118100.0,0.7387371]
[1752950525344,0.2545796,118110.0,118100.0,0.575914]
[1752950525543,0.4174027,118110.0,118100.0,0.5449831]
[1752950526345,0.4174027,118110.0,118100.0,0.7142471]
[1752950526645,0.4184027,118110.0,118100.0,0.7142471]
[1752950527144,0.43491981,118110.0,118100.0,0.7387371]
[1752950527645,0.43591981,118110.0,118100.0,0.7387371]
[1752950527847,0.43592189,118110.0,118100.0,0.7387371]
[1752950528046,0.43592189,118110.0,118100.0,0.575914]
[1752950528545,0.43592189,118110.0,118100.0,0.7387371]
[1752950529145,0.4194027,118110.0,118100.0,0.7387371]
[1752950529341,0.43592974,118110.0,118100.0,0.2086731]
[1752950529841,0.43592974,118110.0,118100.0,0.377937]
[1752950531649,0.43592974,118110.0,118100.0,0.2151139]
[1752950531948,0.43592974,118110.0,118100.0,0.377937]
[1752950532250,0.43592974,118110.0,118100.0,0.2086731]
[1752950533553,0.43592974,118110.0,118100.0,0.3779371]
[1752950534350,0.43592974,118110.0,118100.0,0.02136]
[1752950534651,0.254544,118100.0,118090.0,0.4636105]
[1752950534853,1.01521414,118100.0,118090.0,0.4636105]
[1752950535355,1.01521414,118100.0,118090.0,0.421291]
[1752950536753,1.01521414,118100.0,118090.0,0.782091]
[1752950538556,1.01521414,118100.0,118090.0,0.2584679]
[1752950538755,1.01521414,118100.0,118090.0,0.1916584]
[1752950538948,0.2545583,118090.0,118080.0,1.1901582]
[1752950539154,0.43390844,118090.0,118080.0,0.82759735]
[1752950539357,0.43390844,118090.0,118080.0,0.6192815]
[1752950539558,0.43390844,118090.0,118080.0,0.7821046]
[1752950540258,0.43390844,118090.0,118080.0,0.7831046]
[1752950540459,0.43390844,118090.0,118080.0,0.7841046]
[1752950540958,0.27108534,118090.0,118080.0,0.7841046]
[1752950542259,0.27108534,118090.0,118080.0,0.6212815]
[1752950542460,0.27108534,118090.0,118080.0,0.7841046]
[1752950543456,0.34041206,118090.0,118080.0,0.7841046]
[1752950543758,0.50323516,118090.0,118080.0,0.7841046]
[1752950544662,0.48670812,118090.0,118080.0,0.7841046]
[1752950544862,0.50323236,118090.0,118080.0,0.7841046]
[1752950548262,0.34040926,118090.0,118080.0,0.7841046]
[1752950549563,0.50323236,118090.0,118080.0,0.9469277]
[1752950550366,0.34040926,118090.0,118080.0,0.9469277]
[1752950550765,0.34040926,118090.0,118080.0,0.9507377]
[1752950555671,0.50323236,118090.0,118080.0,0.9507377]
[1752950557375,0.50323236,118090.0,118080.0,0.6250915]
[1752950557672,0.50323236,118090.0,118080.0,0.9507377]
[1752950560876,0.13692096,118090.0,118080.0,0.9507377]
[1752950561067,0.08585096,118090.0,118080.0,1.1135608]
[1752950561772,0.08585096,118090.0,118080.0,0.9507377]
[1752950561972,0.08585096,118090.0,118080.0,0.99623045]
[1752950562277,0.08585096,118090.0,118080.0,1.57759045]
[1752950563380,0.27779926,118090.0,118080.0,1.57759045]
[1752950564281,0.10852096,118090.0,118080.0,1.57759045]
[1752950565180,0.27779916,118090.0,118080.0,1.57759045]
[1752950565381,0.30558916,118090.0,118080.0,1.57759045]
[1752950566777,0.30558916,118090.0,118080.0,1.5320977]
[1752950568886,0.30558916,118090.0,118080.0,1.8928977]
[1752950569985,0.13631096,118090.0,118080.0,1.8928977]
[1752950570883,0.13631096,118090.0,118080.0,1.1712977]
[1752950571084,0.13631096,118090.0,118080.0,1.8928977]
[1752950571686,0.13631096,118090.0,118080.0,1.1712977]
[1752950571891,0.13631096,118090.0,118080.0,1.8928977]
[1752950572090,0.30558926,118090.0,118080.0,1.8928977]
[1752950572691,0.13631096,118090.0,118080.0,1.8928977]
[1752950576695,0.13631096,118090.0,118080.0,1.93839045]
[1752950578296,0.30558926,118090.0,118080.0,1.93839045]
[1752950578496,0.13631096,118090.0,118080.0,1.93839045]
[1752950583302,0.13615644,118090.0,118080.0,1.93839045]
[1752950583703,0.30543474,118090.0,118080.0,1.93839045]
[1752950584902,0.30543474,118090.0,118080.0,1.61274425]
[1752950585101,0.30543474,118090.0,118080.0,1.93839045]
[1752950589305,0.30543474,118090.0,118080.0,1.35703045]
[1752950590407,0.32125474,118090.0,118080.0,1.35703045]
[1752950591506,0.32362474,118090.0,118080.0,1.35703045]
[1752950594207,0.32362474,118090.0,118080.0,1.03138425]
[1752950594410,0.32362474,118090.0,118080.0,1.35703045]
[1752950595306,0.33951474,118090.0,118080.0,1.35703045]
[1752950598114,0.33951474,118090.0,118080.0,1.03138425]
[1752950598312,0.33951474,118090.0,118080.0,1.35703045]
[1752950606019,0.17023644,118090.0,118080.0,1.35703045]
[1752950608525,0.15434644,118090.0,118080.0,1.35703045]
[1752950609726,0.11332644,118090.0,118080.0,1.35703045]
[1752950610027,0.10836644,118090.0,118080.0,1.35703045]
[1752950611922,0.01652424,118090.0,118080.0,1.51985355]
[1752950612126,0.8018196,118110.0,118100.0,0.2176439]
[1752950612326,0.8018196,118110.0,118100.0,0.9040901]
[1752950612620,0.64842,118110.0,118100.0,0.9040901]
[1752950612821,0.65079,118110.0,118100.0,0.9040901]
[1752950613021,0.8363895,118110.0,118100.0,0.9040901]
[1752950613222,0.8363895,118110.0,118100.0,0.9050901]
[1752950613723,0.8363895,118110.0,118100.0,0.9060901]
[1752950615117,0.8363495,118110.0,118100.0,0.9060901]
[1752950617727,0.9991726,118110.0,118100.0,0.9060901]
[1752950617927,0.9991726,118110.0,118100.0,0.739457]
[1752950619328,0.9991726,118110.0,118100.0,0.738457]
[1752950619524,0.9991726,118110.0,118100.0,0.737457]
[1752950619829,0.9991726,118110.0,118100.0,0.9002801]
[1752950620131,0.9991726,118110.0,118100.0,0.737457]
[1752950620928,0.9991726,118110.0,118100.0,0.9002801]
[1752950621129,0.8363495,118110.0,118100.0,0.9002801]
[1752950624030,0.85275123,118110.0,118100.0,0.9002801]
[1752950624331,0.85275123,118110.0,118100.0,0.5746339]
[1752950624831,1.01557433,118110.0,118100.0,0.40537]
[1752950625032,1.01557433,118110.0,118100.0,0.737457]
[1752950628741,1.01557433,118110.0,118100.0,0.714607]
[1752950630242,1.01557433,118110.0,118100.0,0.3608]
[1752950630442,0.2572038,118100.0,118090.0,1.0909452]
[1752950630638,0.43642863,118100.0,118090.0,1.4517452]
[1752950631039,0.43642863,118100.0,118090.0,1.4766352]
[1752950632343,0.27360553,118100.0,118090.0,1.4766352]
[1752950633747,0.27360553,118100.0,118090.0,1.1849352]
[1752950634946,0.2572038,118100.0,118090.0,1.1849352]
[1752950636549,0.2572038,118100.0,118090.0,1.0221121]
[1752950636848,0.2572038,118100.0,118090.0,1.1849352]
[1752950638451,0.2572038,118100.0,118090.0,1.21531042]
[1752950641450,0.27373521,118100.0,118090.0,1.1849352]
[1752950642046,0.27373521,118100.0,118090.0,1.1887452]
[1752950643252,0.27373521,118100.0,118090.0,1.1849352]
[1752950643550,0.43655831,118100.0,118090.0,1.1849352]
[1752950644956,0.43655831,118100.0,118090.0,1.0221121]
[1752950645156,0.43655831,118100.0,118090.0,1.1849352]
[1752950646449,0.43655831,118100.0,118090.0,1.1426163]
[1752950646954,0.43655831,118100.0,118090.0,1.1177263]
[1752950647557,0.43655831,118100.0,118090.0,1.1426163]
[1752950649957,0.4200269,118100.0,118090.0,1.1426163]
[1752950650158,0.43655823,118100.0,118090.0,1.1426163]
[1752950650455,0.4200269,118100.0,118090.0,1.1426163]
[1752950651657,0.4365589,118100.0,118090.0,1.1426163]
[1752950654063,0.4365589,118100.0,118090.0,1.1003114]
[1752950654264,0.4365589,118100.0,118090.0,0.74332]
[1752950654457,0.4365589,118100.0,118090.0,1.0754214]
[1752950654963,0.4365589,118100.0,118090.0,1.1003114]